fUSD/lending_fUSD_20251030
["ID","MTS","AMOUNT","RATE_DAILY","PERIOD"]
[392656396,1761785015405,-15184.2432188,0.00014998,2]
[392656397,1761785015426,-1300.6006471,0.00014998,2]
[392656398,1761785015447,-300.0,0.00014999,2]
[392656399,1761785015469,-1200.0,0.00014999,2]
[392656400,1761785015496,-500.0,0.00014999,2]
[392656401,1761785015839,-350.17235362,0.00014999,2]
[392656402,1761785015862,-1102.511,0.00014999,2]
[392656403,1761785015882,-150.0,0.00014999,2]
[392656404,1761785015903,-1977.21852962,0.00015,2]
[392656457,1761785131565,150.0,0.00013488,2]
[392656460,1761785194501,164.0,0.00031507,120]
[392656497,1761785351650,9268.57401781,0.000165,3]
[392656503,1761785404315,10000.0,0.000155,3]
[392656507,1761785432448,-462.06112615,0.00014129,2]
[392656508,1761785432460,-1707.54897056,0.00014129,2]
[392656562,1761785432944,-3785.92125758,0.00014129,2]
[392656565,1761785432955,-4978.79152175,0.00014129,2]
[392656567,1761785432966,-1543.162,0.00014129,2]
[392656583,1761785438245,-551.69483698,0.00014129,2]
[392656584,1761785438354,-1569.17784891,0.00014129,2]
[392656585,1761785438365,-4413.18243807,0.00014129,2]
[392656586,1761785438375,-166.69,0.00014406,2]
[392656587,1761785438385,-195.0,0.0001448,2]
[392656588,1761785438395,-300.0,0.00014555,2]
[392656589,1761785438405,-300.0,0.00014555,2]
[392656590,1761785438415,-195.0,0.00014705,2]
[392656591,1761785438425,-300.0,0.00014972,2]
[392656592,1761785438436,-1200.0,0.00014972,2]
[392656593,1761785438447,-300.0,0.00014972,2]
[392656594,1761785438457,-500.0,0.00014973,2]
[392656595,1761785438467,-500.0,0.00014973,2]
[392656596,1761785438477,-133.61416327,0.00014973,2]
[392656597,1761785438491,-366.38583673,0.00014973,2]
[392656598,1761785438501,-500.0,0.00014973,2]
[392656599,1761785438511,-500.0,0.00014973,2]
[392656600,1761785438522,-439.6969,0.0001498,2]
[392656601,1761785438532,-2707.5594776,0.00014984,2]
[392656602,1761785438543,-4965.02427574,0.00014984,2]
[392656603,1761785438555,-3040.58026446,0.00014984,2]
[392656604,1761785438567,-480.760565,0.00014984,2]
[392656605,1761785438580,-896.40182499,0.00014984,2]
[392656606,1761785438596,-3948.53693535,0.00014984,2]
[392656634,1761785442401,-50988.06354606,0.00014984,2]
[392656635,1761785442411,-500.0,0.00014991,2]
[392656636,1761785442420,-277.35679052,0.00014991,2]
[392656637,1761785442430,-574.12855637,0.00014991,2]
[392656638,1761785442439,-999.99,0.00014991,2]
[392656639,1761785442448,-3828.58,0.00014991,2]
[392656640,1761785442457,-8946.07,0.00014991,2]
[392656641,1761785442466,-9999.99,0.00014991,2]
[392656642,1761785442475,-9999.99,0.00014991,2]
[392656643,1761785442484,-150.0,0.00014999,2]
[392656644,1761785442493,-862.0,0.00015,2]
[392656645,1761785442502,-675954.67908463,0.00015,2]
[392656646,1761785442512,-25234.22656546,0.00015,2]
[392656647,1761785442520,-79759.80530998,0.00015,2]
[392656648,1761785442529,-150.0,0.00015,2]
[392656649,1761785442539,-590.75491027,0.00015,2]
[392656650,1761785442548,-150.0,0.00015,2]
[392656651,1761785442557,-593.35255048,0.00015,2]
[392656652,1761785442566,-500.0,0.00015,2]
[392656653,1761785442576,-150.0,0.00015,2]
[392656654,1761785442585,-1424.69017072,0.00015,2]
[392656655,1761785442594,-150.0,0.00015,2]
[392656656,1761785442603,-6254.68375706,0.00015,2]
[392656657,1761785442612,-150.0,0.00015,2]
[392656658,1761785442622,-1255.32976578,0.00015,2]
[392656659,1761785442634,-10245.60006886,0.00015,2]
[392656660,1761785442644,-92203.26644767,0.00015,2]
[392656661,1761785442654,-5004850.29335718,0.00015,2]
[392656662,1761785442670,-11368.0,0.00015,2]
[392656670,1761785446606,-4424.33775449,0.00015,2]
[392656676,1761785505296,1201.04253,0.000315,120]
[392656761,1761785848438,1806.5,0.00031506,120]
[392656770,1761786051532,150.0,0.00014145,120]
[392656771,1761786227980,31889.48395425,0.000155,3]
[392656810,1761786313373,150.0,0.00013488,2]
[392656813,1761786320219,150.0,0.00013488,2]
[392656815,1761786327617,150.0,0.00013488,2]
[392656823,1761786375949,198.2,0.00015,3]
[392656844,1761786446738,-1890.74,0.00014091,2]
[392656845,1761786454888,172.38685123,0.00014006,2]
[392656849,1761786483863,200.0,0.00014053,2]
[392656850,1761786511528,500.0,0.00014045,2]
[392656851,1761786514410,15080.44457194,0.00016,3]
[392656852,1761786603480,150.0,0.00014042,2]
[392656859,1761786631848,-195.0,0.00014114,2]
[392656860,1761786631859,-187.26,0.00014121,2]
[392656862,1761786631868,-70.33480665,0.00014145,2]
[392656863,1761786631880,-79.66519335,0.00014145,2]
[392656864,1761786631890,-195.0,0.00014192,2]
[392656865,1761786631899,-53.11062104,0.00014453,2]
[392656866,1761786631911,-119.27623018,0.00014453,2]
[392656868,1761786631920,-168.0,0.00014665,2]
[392656870,1761786631929,-213.27353754,0.00014824,2]
[392656872,1761786631940,-509.06467246,0.00014824,2]
[392656874,1761786631949,-150.0,0.00014899,2]
[392656876,1761786631958,-300.0,0.00014899,2]
[392656877,1761786631968,-300.0,0.00014899,2]
[392656879,1761786631978,-1200.0,0.00014899,2]
[392656881,1761786631988,-257.0365,0.000149,2]
[392656883,1761786631997,-1692.86696616,0.000149,2]
[392656885,1761786632008,-172.38685122,0.000149,2]
[392656886,1761786632018,-5154.2,0.000149,2]
[392656887,1761786632027,-9999.99,0.000149,2]
[392656888,1761786632037,-5786.18,0.000149,2]
[392656889,1761786632046,-200.0,0.00014925,2]
[392656890,1761786632055,-150.99,0.00014925,2]
[392656891,1761786632065,-999.99,0.00014925,2]
[392656892,1761786632073,-152.44776067,0.00014964,2]
[392656893,1761786632083,-277.35679052,0.00014964,2]
[392656894,1761786632094,-500.0,0.00014973,2]
[392656895,1761786632104,-500.0,0.00014973,2]
[392656896,1761786632114,-500.0,0.00014973,2]
[392656897,1761786632124,-500.0,0.00014973,2]
[392656898,1761786632134,-574.12855637,0.00014991,2]
[392656899,1761786632144,-500.0,0.00014991,2]
[392656900,1761786632154,-3866.02013006,0.00014999,2]
[392656901,1761786632164,-1000.0,0.00014999,2]
[392656902,1761786632174,-8069.0293285,0.00014999,2]
[392656903,1761786632184,-1048.0,0.00015,2]
[392656904,1761786632194,-90651.71563453,0.00015,2]
[392656905,1761786632206,-37969.72510214,0.00015,2]
[392656911,1761786639788,-5901847.00864003,0.00015,2]
[392656912,1761786639890,-26965.02069113,0.00015,2]
[392656913,1761786639902,-2438.14607851,0.00015,2]
[392656925,1761786645636,-11148.34044361,0.00015,2]
[392656935,1761786749615,1009.5324323,0.000315,120]
[392656939,1761786800661,500.0,0.00026884,120]
[392656941,1761787066506,150.0,0.00014024,2]
[392656942,1761787100185,954.83,0.00013934,2]
[392656944,1761787158423,1000.0,0.00013913,2]
[392656945,1761787195255,560.55,0.00013913,2]
[392656946,1761787281545,723.0,0.000315,120]
[392657057,1761787321428,832.52,0.00013911,2]
[392657059,1761787347668,200.0,0.00013905,2]
[392657060,1761787408902,162.55835757,0.00014,2]
[392657160,1761787464948,307.0,0.000315,120]
[392657161,1761787487864,1852.42,0.00013829,2]
[392657168,1761787511852,150.0,0.00013488,2]
[392657169,1761787511944,153.77657523,0.00013488,2]
[392657170,1761787525259,499.0,0.000315,120]
[392657171,1761787526365,150.0,0.00013488,2]
[392657172,1761787526449,150.0,0.00013488,2]
[392657173,1761787527888,150.0,0.00013488,2]
[392657293,1761787636922,183.09517263,0.0001305,2]
[392657370,1761787744472,999.0,0.00013797,3]
[392657372,1761787766306,804.87,0.00013699,2]
[392657448,1761787806191,291.77,0.000305,120]
[392657473,1761787822064,1862.11,0.00013834,2]
[392657524,1761787831731,-215.27123608,0.00014299,2]
[392657525,1761787831741,-300.0,0.00014302,2]
[392657526,1761787831751,-3.11730668,0.00014302,2]
[392657528,1761787831771,-251.54075862,0.00014302,2]
[392657530,1761787831780,-500.0,0.00014304,2]
[392657531,1761787831789,-195.0,0.00014305,2]
[392657532,1761787831799,-300.0,0.00014312,2]
[392657534,1761787831808,-300.0,0.00014312,2]
[392657535,1761787831818,-303.03200161,0.00014312,2]
[392657536,1761787831828,-612.3227412,0.00014344,2]
[392657538,1761787831837,-195.0,0.00014344,2]
[392657539,1761787831847,-277.35679052,0.00014399,2]
[392657540,1761787831859,-300.0,0.00014404,2]
[392657542,1761787831869,-1200.0,0.00014404,2]
[392657543,1761787831879,-150.0,0.00014404,2]
[392657544,1761787831888,-584.72627723,0.00014404,2]
[392657546,1761787831898,-227.73196735,0.00014404,2]
[392657547,1761787831908,-168.0,0.00014405,2]
[392657548,1761787831919,-3828.58,0.00014405,2]
[392657549,1761787831932,-8946.07,0.00014405,2]
[392657550,1761787831942,-3997.99936401,0.00014405,2]
[392657567,1761787837933,-3352.84863858,0.00014405,2]
[392657568,1761787837946,-2649.14199741,0.00014405,2]
[392657569,1761787837955,-150.99,0.00014405,2]
[392657571,1761787837965,-4431.2436027,0.00014405,2]
[392657573,1761787837977,-5568.7463973,0.00014405,2]
[392657575,1761787837987,-999.99,0.00014405,2]
[392657577,1761787837997,-6718.96062697,0.00014405,2]
[392657579,1761787838008,-3281.02937303,0.00014405,2]
[392657581,1761787838018,-168.0,0.00014426,2]
[392657583,1761787838027,-168.0,0.00014463,2]
[392657585,1761787838037,-168.0,0.00014506,2]
[392657587,1761787838046,-168.0,0.00014577,2]
[392657589,1761787838055,-150.0,0.00014671,2]
[392657591,1761787838065,-168.0,0.0001479,2]
[392657593,1761787838074,-227.73196735,0.00014797,2]
[392657595,1761787838084,-168.0,0.00014797,2]
[392657597,1761787838095,-697.54,0.000148,2]
[392657599,1761787838105,-711.32,0.000148,2]
[392657601,1761787838116,-500.0,0.00014809,2]
[392657603,1761787838128,-176.22415937,0.00014809,2]
[392657606,1761787838142,-323.77584063,0.00014809,2]
[392657607,1761787838152,-192.25418432,0.00014809,2]
[392657609,1761787838163,-485.95791637,0.00014809,2]
[392657611,1761787838174,-236.92945248,0.00014809,2]
[392657613,1761787838185,-972.0,0.00014809,2]
[392657616,1761787838196,-574.12855637,0.0001481,2]
[392657618,1761787838206,-500.0,0.0001481,2]
[392657620,1761787838215,-227.73196735,0.00014818,2]
[392657622,1761787838228,-168.0,0.00014818,2]
[392657624,1761787838239,-168.0,0.00014837,2]
[392657626,1761787838249,-270.30947173,0.0001485,2]
[392657628,1761787838263,-86.59814827,0.0001485,2]
[392657630,1761787838273,-285.57302657,0.0001486,2]
[392657774,1761787839775,-71.33460343,0.0001486,2]
[392657776,1761787839785,-707.01739659,0.0001487,2]
[392657779,1761787839800,-2566.29100436,0.0001487,2]
[392657781,1761787839816,-243.41759905,0.0001487,2]
[392657784,1761787839826,-597.58240095,0.00014886,2]
[392657787,1761787839852,-3309.34759905,0.00014886,2]
[392657789,1761787839862,-287.69678195,0.00014899,2]
[392657792,1761787839877,-32679.1617272,0.000149,2]
[392657802,1761787839967,-93997.8345728,0.000149,2]
[392657804,1761787839977,-697.54,0.000149,2]
[392657806,1761787839986,-150.0,0.000149,2]
[392657808,1761787839996,-356.24,0.000149,2]
[392657810,1761787840006,-697.54,0.000149,2]
[392657812,1761787840016,-697.54,0.000149,2]
[392657814,1761787840026,-697.54,0.000149,2]
[392657816,1761787840035,-697.54,0.000149,2]
[392657818,1761787840044,-11001.77963253,0.000149,2]
[392657820,1761787840054,-697.54,0.000149,2]
[392657822,1761787840063,-697.54,0.000149,2]
[392657824,1761787840073,-697.54,0.000149,2]
[392657826,1761787840082,-697.54,0.000149,2]
[392657828,1761787840091,-626.4195441,0.000149,2]
[392657830,1761787840100,-697.54,0.000149,2]
[392657832,1761787840110,-246.53,0.00014922,2]
[392657834,1761787840122,-476.35,0.00014971,2]
[392657836,1761787840132,-500.0,0.00014973,2]
[392657838,1761787840141,-500.952163,0.00014973,2]
[392657840,1761787840151,-405.47339345,0.00014973,2]
[392657842,1761787840160,-500.0,0.00014973,2]
[392657844,1761787840170,-500.0,0.00014973,2]
[392657846,1761787840180,-500.0,0.00014973,2]
[392657848,1761787840189,-500.0,0.00014973,2]
[392657850,1761787840198,-171.36383907,0.00014973,2]
[392657852,1761787840208,-500.0,0.00014973,2]
[392657854,1761787840218,-500.0,0.00014973,2]
[392657857,1761787840228,-500.0,0.00014973,2]
[392657859,1761787840237,-170.41116446,0.00014973,2]
[392657861,1761787840247,-500.0,0.00014973,2]
[392657863,1761787840257,-500.0,0.00014973,2]
[392657865,1761787840267,-473.39530969,0.00014973,2]
[392657867,1761787840277,-502.9324263,0.00014973,2]
[392657869,1761787840287,-168.0,0.00014983,2]
[392657871,1761787840296,-1314.553,0.00014986,2]
[392657873,1761787840305,-1593.0,0.00014986,2]
[392657875,1761787840314,-1271.0,0.00014986,2]
[392657877,1761787840324,-819.0,0.00014986,2]
[392657879,1761787840333,-6617.923,0.00014986,2]
[392657881,1761787840343,-609.63,0.00014986,2]
[392657883,1761787840352,-824.676,0.00014986,2]
[392657885,1761787840364,-882.009,0.0001499,2]
[392657887,1761787840375,-896.03186162,0.00014997,2]
[392657889,1761787840386,-150.0,0.00014999,2]
[392657891,1761787840396,-500.0,0.00014999,2]
[392657893,1761787840405,-150.0,0.00014999,2]
[392657895,1761787840415,-150.0,0.00014999,2]
[392657897,1761787840424,-500.0,0.00014999,2]
[392657899,1761787840433,-215.53937377,0.00014999,2]
[392657901,1761787840443,-835.0,0.00015,2]
[392657903,1761787840452,-206075.6441467,0.00015,2]
[392657906,1761787840468,-3430.27801453,0.00015,2]
[392657908,1761787840480,-1957320.38018326,0.00015,2]
[392657910,1761787840489,-2027.33023954,0.00015,2]
[392657912,1761787840498,-7892.25569995,0.00015,2]
[392657914,1761787840507,-4212330.98651476,0.00015,2]
[392658156,1761787842832,-2846.31414818,0.00015,2]
[392658160,1761787842862,-3981.16016373,0.00015,2]
[392658164,1761787842893,-1178.46,0.00015,2]
[392658178,1761787843007,-1704.46145209,0.00015,2]
[392658180,1761787843018,-944.9785967,0.00015,2]
[392658468,1761787845765,-614.0905448,0.000148,2]
[392658484,1761787845905,-83.4494552,0.000148,2]
[392658486,1761787845915,-576.232,0.0001487,2]
[392658488,1761787845925,-4910.77308448,0.00015,2]
[392659481,1761787915723,169.0,0.0003135,120]
[392659482,1761787942553,1000.0,0.00031506,120]
[392659483,1761787948625,403.731228,0.00014097,2]
[392659484,1761787968850,401.0,0.00031506,120]
[392659485,1761787978850,348.0,0.00031507,120]
[392659486,1761787999136,513.60117,0.00025999,120]
[392659487,1761788024453,535.48,7.02e-05,2]
[392659488,1761788024852,535.48,7.39e-05,2]
[392659489,1761788025266,535.48,7.759e-05,2]
[392659490,1761788025310,535.48,8.129e-05,2]
[392659491,1761788025498,535.48,8.498e-05,2]
[392659492,1761788025699,535.48,8.868e-05,2]
[392659493,1761788025921,535.48,9.237e-05,2]
[392659494,1761788026114,535.48,9.607e-05,2]
[392659495,1761788026321,535.48,9.976e-05,2]
[392659496,1761788026543,535.48,0.00010346,2]
[392659497,1761788026759,535.48,0.00010715,2]
[392659498,1761788026958,535.48,0.00011085,2]
[392659499,1761788027235,535.48,0.00011454,2]
[392659500,1761788027448,535.48,0.00011824,2]
[392659501,1761788027674,535.48,0.00012193,2]
[392659502,1761788027911,535.48,0.00012562,2]
[392659503,1761788028104,535.48,0.00012932,2]
[392659504,1761788028312,535.48,0.00013301,2]
[392659505,1761788028969,535.48,0.00013671,2]
[392659506,1761788029024,535.48,0.0001404,2]
[392659507,1761788061250,11499.5169105,0.00031506,120]
[392659509,1761788095649,2098.6476734,0.00031506,120]
[392659555,1761788432607,177.578,0.00031507,120]
[392659580,1761788457029,250.0,0.00013945,2]
[392659706,1761788571686,564.71,0.00013947,2]
[392659814,1761788758589,150.0,0.00013945,2]
[392659815,1761788810944,150.0,0.00013945,2]
[392659816,1761788811391,150.0,0.00013945,120]
[392659824,1761788839675,13651.36181534,0.00013935,2]
[392659843,1761789031915,-874.08452285,0.00013934,2]
[392659844,1761789031926,-325.91547715,0.00013934,2]
[392659845,1761789031935,-31.12091005,0.00013935,2]
[392659846,1761789031946,-151.76475334,0.00013935,2]
[392659847,1761789031955,-250.0,0.00013935,2]
[392659848,1761789031964,-136.20468452,0.00013935,2]
[392659849,1761789031975,-58.79531548,0.00013935,2]
[392659850,1761789031985,-844.81232818,0.00013935,2]
[392659851,1761789032021,-534.39496866,0.00013935,2]
[392659852,1761789032075,-7051.41088782,0.00013935,2]
[392659853,1761789032085,-160.2397299,0.00013992,2]
[392659854,1761789032095,-754.79365057,0.0001404,2]
[392659855,1761789032104,-158.72378034,0.0001404,2]
[392659856,1761789032114,-195.0,0.00014092,2]
[392659857,1761789032122,-166.06,0.00014168,2]
[392659858,1761789032132,-300.0,0.00014542,2]
[392659859,1761789032141,-642.5439093,0.00014543,2]
[392659860,1761789032151,-1057.0,0.00014608,2]
[392659861,1761789032161,-500.0,0.00014685,2]
[392659862,1761789032170,-150.0,0.000147,2]
[392659863,1761789032179,-697.54,0.000147,2]
[392659865,1761789032189,-176.63,0.000147,2]
[392659866,1761789032198,-1203.25,0.000147,2]
[392659867,1761789032207,-150.0,0.000147,2]
[392659868,1761789032217,-697.54,0.000147,2]
[392659869,1761789032226,-1057.0,0.00014701,2]
[392659870,1761789032236,-150.0,0.00014789,2]
[392659871,1761789032245,-814.17497127,0.0001479,2]
[392659872,1761789032254,-153.9470873,0.0001479,2]
[392659873,1761789032264,-150.99,0.0001479,2]
[392659874,1761789032273,-9999.99,0.0001479,2]
[392659875,1761789032283,-2834.3,0.0001479,2]
[392659876,1761789032292,-277.35679052,0.0001479,2]
[392659878,1761789032301,-862.55167061,0.000148,2]
[392659880,1761789032311,-1000.0,0.000148,2]
[392659882,1761789032322,-150.0,0.000148,2]
[392659884,1761789032332,-763.36,0.000148,2]
[392659886,1761789032342,-476.35,0.000148,2]
[392659888,1761789032351,-353.26,0.000148,2]
[392659890,1761789032362,-150.0,0.000148,2]
[392659892,1761789032371,-150.0,0.000148,2]
[392659894,1761789032381,-150.0,0.000148,2]
[392659896,1761789032390,-150.0,0.000148,2]
[392659898,1761789032402,-697.54,0.000148,2]
[392659899,1761789032412,-795.4607965,0.000148,2]
[392659900,1761789032421,-1277.89,0.000148,2]
[392659901,1761789032430,-150.9,0.000148,2]
[392659902,1761789032439,-697.54,0.000148,2]
[392659903,1761789032449,-180.13,0.000148,2]
[392659904,1761789032458,-1338.0,0.000148,2]
[392659905,1761789032468,-176.63,0.000148,2]
[392659906,1761789032477,-150.0,0.000148,2]
[392659907,1761789032487,-150.0,0.000148,2]
[392659908,1761789032496,-1395.08,0.000148,2]
[392659909,1761789032506,-697.54,0.000148,2]
[392659910,1761789032515,-150.0,0.000148,2]
[392659911,1761789032524,-176.63,0.000148,2]
[392659912,1761789032533,-697.54,0.000148,2]
[392659913,1761789032542,-414.99,0.000148,2]
[392659914,1761789032552,-697.54,0.000148,2]
[392659915,1761789032561,-176.63,0.000148,2]
[392659916,1761789032571,-414.99,0.000148,2]
[392659917,1761789032580,-1203.25,0.000148,2]
[392659918,1761789032590,-697.54,0.000148,2]
[392659919,1761789032599,-11697.8584831,0.0001485,2]
[392659920,1761789032608,-609.74890348,0.0001485,2]
[392659921,1761789032617,-3003.40335467,0.0001485,2]
[392659922,1761789032627,-899.13,0.00014867,2]
[392659923,1761789032636,-197.78,0.00014877,2]
[392659924,1761789032645,-574.12855637,0.00014891,2]
[392659925,1761789032655,-389.40951431,0.00014899,2]
[392659926,1761789032663,-822.742,0.000149,2]
[392659927,1761789032673,-476.35,0.000149,2]
[392659928,1761789032682,-476.35,0.000149,2]
[392659929,1761789032691,-1196.35,0.000149,2]
[392659930,1761789032700,-150.0,0.000149,2]
[392659931,1761789032709,-414.99,0.000149,2]
[392659932,1761789032719,-476.35,0.000149,2]
[392659933,1761789032728,-293.5,0.000149,2]
[392659934,1761789032737,-150.0,0.000149,2]
[392659935,1761789032746,-176.63,0.000149,2]
[392659936,1761789032755,-697.54,0.000149,2]
[392659937,1761789032764,-476.35,0.000149,2]
[392659938,1761789032774,-414.99,0.000149,2]
[392659939,1761789032783,-697.54,0.000149,2]
[392659940,1761789032792,-952.7,0.000149,2]
[392659941,1761789032801,-1000.0,0.000149,2]
[392659942,1761789032810,-11919.40145809,0.000149,2]
[392659943,1761789032819,-11196.37160796,0.000149,2]
[392659944,1761789032828,-476.35,0.00014919,2]
[392659945,1761789032837,-476.35,0.00014919,2]
[392659946,1761789032846,-476.35,0.00014919,2]
[392659947,1761789032855,-476.35,0.00014919,2]
[392659948,1761789032864,-476.35,0.00014919,2]
[392659949,1761789032873,-476.35,0.00014919,2]
[392659950,1761789032883,-476.35,0.00014919,2]
[392659951,1761789032892,-476.35,0.00014919,2]
[392659952,1761789032901,-476.35,0.00014919,2]
[392659953,1761789032910,-476.35,0.00014919,2]
[392659954,1761789032919,-476.35,0.00014919,2]
[392659955,1761789032928,-476.35,0.00014919,2]
[392659956,1761789032937,-1057.0,0.00014947,2]
[392659957,1761789032946,-1408.96,0.0001495,2]
[392659958,1761789032955,-471.55,0.00014971,2]
[392659959,1761789032965,-486.19,0.00014971,2]
[392659960,1761789032974,-500.0,0.00014973,2]
[392659961,1761789032983,-504.06088334,0.00014973,2]
[392659962,1761789032992,-500.0,0.00014973,2]
[392659963,1761789033002,-523.25851717,0.00014973,2]
[392659964,1761789033011,-608.40941683,0.00014973,2]
[392659965,1761789033020,-500.0,0.00014973,2]
[392659966,1761789033030,-500.0,0.00014973,2]
[392659967,1761789033040,-508.66972203,0.00014973,2]
[392659968,1761789033049,-501.35965981,0.00014973,2]
[392659969,1761789033058,-253.15608638,0.00014973,2]
[392659970,1761789033069,-500.0,0.00014973,2]
[392659971,1761789033078,-573.0,0.00014986,2]
[392659972,1761789033087,-606.0,0.00014986,2]
[392659973,1761789033097,-3436.241,0.00014986,2]
[392659974,1761789033106,-820.0,0.00014986,2]
[392659975,1761789033115,-1602.515,0.00014986,2]
[392659976,1761789033124,-1320.812,0.00014986,2]
[392659977,1761789033134,-909.111,0.00014986,2]
[392659978,1761789033143,-1193.208,0.00014986,2]
[392659979,1761789033152,-1275.95,0.00014986,2]
[392659980,1761789033161,-822.0,0.00014986,2]
[392659981,1761789033170,-298.398,0.00014986,2]
[392659982,1761789033180,-3493.0,0.00014986,2]
[392659983,1761789033189,-164.42471753,0.00014988,2]
[392659984,1761789033198,-150.89169198,0.00014999,2]
[392659985,1761789033207,-150.0,0.00014999,2]
[392659986,1761789033216,-203.9101928,0.00014999,2]
[392659987,1761789033226,-150.0,0.00014999,2]
[392659988,1761789033235,-500.0,0.00014999,2]
[392659989,1761789033244,-500.0,0.00014999,2]
[392659990,1761789033254,-150.0,0.00014999,2]
[392659991,1761789033264,-150.0,0.00014999,2]
[392659992,1761789033273,-150.0,0.00014999,2]
[392659993,1761789033283,-150.0,0.00014999,2]
[392659994,1761789033292,-150.0,0.00014999,2]
[392659995,1761789033301,-500.0,0.00014999,2]
[392659996,1761789033311,-500.0,0.00014999,2]
[392659997,1761789033320,-150.0,0.00014999,2]
[392659998,1761789033334,-150.0,0.00014999,2]
[392659999,1761789033343,-500.0,0.00014999,2]
[392660000,1761789033353,-500.0,0.00014999,2]
[392660001,1761789033362,-150.0,0.00014999,2]
[392660002,1761789033373,-500.0,0.00014999,2]
[392660003,1761789033382,-150.0,0.00014999,2]
[392660004,1761789033391,-500.0,0.00014999,2]
[392660005,1761789033402,-150.0,0.00014999,2]
[392660006,1761789033411,-150.0,0.00014999,2]
[392660007,1761789033420,-500.0,0.00014999,2]
[392660008,1761789033430,-561.0,0.00014999,2]
[392660009,1761789033439,-500.0,0.00014999,2]
[392660010,1761789033448,-500.0,0.00014999,2]
[392660011,1761789033458,-150.0,0.00014999,2]
[392660012,1761789033467,-500.0,0.00014999,2]
[392660013,1761789033477,-150.0,0.00014999,2]
[392660014,1761789033486,-150.0,0.00014999,2]
[392660015,1761789033672,-150.0,0.00014999,2]
[392660016,1761789033682,-150.0,0.00014999,2]
[392660017,1761789033692,-500.0,0.00014999,2]
[392660018,1761789033702,-150.0,0.00014999,2]
[392660019,1761789033711,-150.0,0.00014999,2]
[392660020,1761789033720,-150.0,0.00014999,2]
[392660021,1761789033730,-500.0,0.00014999,2]
[392660022,1761789033739,-669.0,0.00015,2]
[392660023,1761789033748,-18466.66260591,0.00015,2]
[392660024,1761789034171,-3387.66438022,0.00015,2]
[392660025,1761789034183,-454.9276565,0.00015,2]
[392660026,1761789034199,-2535.88878382,0.00015,2]
[392660027,1761789034211,-1329.97232262,0.00015,2]
[392660028,1761789034221,-300.0,0.00015,2]
[392660029,1761789034232,-612.54757404,0.00015,2]
[392660030,1761789034243,-87277.81553535,0.00015,2]
[392660031,1761789034254,-1188.26463303,0.00015,2]
[392660032,1761789034265,-3973.0,0.00015,2]
[392660038,1761789037943,-378.15501151,0.00014788,2]
[392660039,1761789037954,-121.84498849,0.00014788,2]
[392660040,1761789037964,-176.23348597,0.00014788,2]
[392660041,1761789037972,-500.0,0.00014788,2]
[392660042,1761789037982,-500.0,0.00014788,2]
[392660043,1761789037991,-500.0,0.00014788,2]
[392660044,1761789038000,-500.0,0.00014788,2]
[392660045,1761789038009,-556.55658314,0.00014788,2]
[392660046,1761789038018,-500.0,0.00014788,2]
[392660047,1761789038027,-500.0,0.00014788,2]